[Event "Titled Tuesday Blitz December 13 Late 2022"]
[White "Svane, Rasmus"]
[Black "Goltsev, Dmitry"]
[WhiteFideId "4657101"]
[BlackFideId "24176710"]
[WhiteElo "2674"]
[BlackElo "2327"]
[Result "1-0"]
[Round "04"]
[TimeControl "180+1"]
[Date "2022.12.13"]
[WhiteClock "0:01:03"]
[BlackClock "0:01:46"]

1. Nf3 {[%clk 0:03:00]}  d5 {[%clk 0:02:58]} 2. g3 {[%clk 0:03:00]}  c6 {[%clk 0:02:59]} 3. Bg2 {[%clk 0:03:01]}  Nf6 {[%clk 0:02:59]} 4. O-O {[%clk 0:03:01]}  g6 {[%clk 0:02:59]} 5. c4 {[%clk 0:03:01]}  Bg7 {[%clk 0:02:59]} 6. b3 {[%clk 0:03:00]}  Ne4 {[%clk 0:02:58]} 7. d4 {[%clk 0:03:00]}  O-O {[%clk 0:02:58]} 8. Bb2 {[%clk 0:03:01]}  Nd7 {[%clk 0:02:58]} 9. Nc3 {[%clk 0:02:48]}  Nxc3 {[%clk 0:02:57]} 10. Bxc3 {[%clk 0:02:49]}  Nf6 {[%clk 0:02:58]} 11. e3 {[%clk 0:02:41]}  Ne4 {[%clk 0:02:58]} 12. Bb2 {[%clk 0:02:42]}  Bg4 {[%clk 0:02:55]} 13. Qc2 {[%clk 0:02:39]}  Qd7 {[%clk 0:02:54]} 14. Ne5 {[%clk 0:02:38]}  Bxe5 {[%clk 0:02:49]} 15. dxe5 {[%clk 0:02:39]}  Bf5 {[%clk 0:02:49]} 16. cxd5 {[%clk 0:02:22]}  cxd5 {[%clk 0:02:45]} 17. Qd1 {[%clk 0:02:17]}  h5 {[%clk 0:02:37]} 18. Qd4 {[%clk 0:02:14]}  e6 {[%clk 0:02:30]} 19. f3 {[%clk 0:02:13]}  Ng5 {[%clk 0:02:27]} 20. h4 {[%clk 0:02:14]}  Nh7 {[%clk 0:02:23]} 21. e4 {[%clk 0:02:14]}  Kh8 {[%clk 0:02:15]} 22. exf5 {[%clk 0:02:12]}  gxf5 {[%clk 0:02:16]} 23. Bc1 {[%clk 0:02:03]}  Rg8 {[%clk 0:02:16]} 24. Bf4 {[%clk 0:02:03]}  Nf8 {[%clk 0:02:15]} 25. Rac1 {[%clk 0:02:02]}  Ng6 {[%clk 0:02:16]} 26. Rc2 {[%clk 0:01:59]}  Nxf4 {[%clk 0:02:12]} 27. Qxf4 {[%clk 0:01:59]}  Rg6 {[%clk 0:02:12]} 28. Rfc1 {[%clk 0:01:53]}  Rag8 {[%clk 0:02:12]} 29. Rc7 {[%clk 0:01:52]}  Qe8 {[%clk 0:02:11]} 30. Kh2 {[%clk 0:01:49]}  Kh7 {[%clk 0:02:07]} 31. Rxb7 {[%clk 0:01:21]}  Rxg3 {[%clk 0:01:57]} 32. Qxg3 {[%clk 0:01:08]}  Rxg3 {[%clk 0:01:58]} 33. Kxg3 {[%clk 0:01:08]}  Qg8+ {[%clk 0:01:58]} 34. Kf2 {[%clk 0:01:09]}  f4 {[%clk 0:01:58]} 35. Rcc7 {[%clk 0:01:08]}  Qg3+ {[%clk 0:01:56]} 36. Kf1 {[%clk 0:01:09]}  Qxh4 {[%clk 0:01:46]} 37. Rxf7+ {[%clk 0:01:09]}  Kg8 {[%clk 0:01:46]} 38. Rfd7 {[%clk 0:01:03]} 1-0


[Site "https://www.chess.com"]

[Event "Titled Tuesday Blitz December 13 Late 2022"]
[White "Tatarinov, Dmitry"]
[Black "Martinez Ramirez, Lennis"]
[WhiteFideId "24160067"]
[BlackFideId "3509079"]
[WhiteElo "2326"]
[BlackElo "2439"]
[Result "0-1"]
[Round "04"]
[TimeControl "180+1"]
[Date "2022.12.14"]
[WhiteClock "0:00:15"]
[BlackClock "0:00:31"]

1. c4 {[%clk 0:03:00]}  Nf6 {[%clk 0:02:58]} 2. Nc3 {[%clk 0:03:00]}  e6 {[%clk 0:02:59]} 3. e4 {[%clk 0:03:00]}  d5 {[%clk 0:02:58]} 4. e5 {[%clk 0:02:59]}  d4 {[%clk 0:02:51]} 5. exf6 {[%clk 0:02:56]}  dxc3 {[%clk 0:02:51]} 6. bxc3 {[%clk 0:02:50]}  Qxf6 {[%clk 0:02:49]} 7. Bd3 {[%clk 0:02:47]}  Nd7 {[%clk 0:02:46]} 8. Nf3 {[%clk 0:02:45]}  e5 {[%clk 0:02:38]} 9. O-O {[%clk 0:02:45]}  Bd6 {[%clk 0:02:38]} 10. Re1 {[%clk 0:02:43]}  O-O {[%clk 0:02:38]} 11. Rb1 {[%clk 0:02:42]}  b6 {[%clk 0:02:36]} 12. Be4 {[%clk 0:02:42]}  Rb8 {[%clk 0:02:36]} 13. d4 {[%clk 0:02:43]}  h6 {[%clk 0:02:33]} 14. c5 {[%clk 0:02:34]}  Be7 {[%clk 0:02:33]} 15. c6 {[%clk 0:02:33]}  exd4 {[%clk 0:02:24]} 16. cxd7 {[%clk 0:02:29]}  Bxd7 {[%clk 0:02:25]} 17. cxd4 {[%clk 0:02:27]}  Bd6 {[%clk 0:02:24]} 18. Ne5 {[%clk 0:02:26]}  Be6 {[%clk 0:02:24]} 19. Qc2 {[%clk 0:02:20]}  c5 {[%clk 0:02:22]} 20. Nc6 {[%clk 0:02:12]}  Rbc8 {[%clk 0:02:22]} 21. d5 {[%clk 0:02:11]}  Bg4 {[%clk 0:02:18]} 22. Bb2 {[%clk 0:02:08]}  Qh4 {[%clk 0:02:17]} 23. g3 {[%clk 0:02:08]}  Qh5 {[%clk 0:02:17]} 24. Be5 {[%clk 0:01:46]}  Rxc6 {[%clk 0:02:14]} 25. dxc6 {[%clk 0:01:43]}  Bxe5 {[%clk 0:02:14]} 26. Bg2 {[%clk 0:01:31]}  Bd4 {[%clk 0:02:14]} 27. Kh1 {[%clk 0:01:28]}  Bf5 {[%clk 0:02:04]} 28. Be4 {[%clk 0:01:27]}  Bxe4+ {[%clk 0:02:04]} 29. Qxe4 {[%clk 0:01:25]}  Bxf2 {[%clk 0:02:04]} 30. Rf1 {[%clk 0:01:20]}  Bxg3 {[%clk 0:02:03]} 31. Rb2 {[%clk 0:01:17]}  Bb8 {[%clk 0:01:49]} 32. Rg2 {[%clk 0:01:17]}  Rc8 {[%clk 0:01:41]} 33. Rfg1 {[%clk 0:00:57]}  Be5 {[%clk 0:01:31]} 34. Qd5 {[%clk 0:00:53]}  Kh8 {[%clk 0:00:38]} 35. Re1 {[%clk 0:00:51]}  f6 {[%clk 0:00:36]} 36. Qd7 {[%clk 0:00:47]}  Rg8 {[%clk 0:00:35]} 37. c7 {[%clk 0:00:47]}  Qe8 {[%clk 0:00:33]} 38. Rxg7 {[%clk 0:00:38]}  Qa8+ {[%clk 0:00:32]} 39. Kg1 {[%clk 0:00:14]}  Rxg7+ {[%clk 0:00:32]} 40. Qxg7+ {[%clk 0:00:13]}  Kxg7 {[%clk 0:00:33]} 41. Rxe5 {[%clk 0:00:14]}  fxe5 {[%clk 0:00:32]} 42. c8=Q {[%clk 0:00:15]}  Qxc8 {[%clk 0:00:31]} 0-1


[Site "https://www.chess.com"]

[Event "Titled Tuesday Blitz December 13 Late 2022"]
[White "Timmermans, Mark"]
[Black "Brown, Andrew"]
[WhiteFideId "1026399"]
[BlackFideId "3206513"]
[WhiteElo "2460"]
[BlackElo "2245"]
[Result "1-0"]
[Round "04"]
[TimeControl "180+1"]
[Date "2022.12.14"]
[WhiteClock "0:00:23"]
[BlackClock "0:00:01"]

1. b4 {[%clk 0:02:59]}  e5 {[%clk 0:02:55]} 2. Bb2 {[%clk 0:02:59]}  Bxb4 {[%clk 0:02:50]} 3. Bxe5 {[%clk 0:02:59]}  Nf6 {[%clk 0:02:37]} 4. Nc3 {[%clk 0:02:59]}  Nc6 {[%clk 0:02:31]} 5. Bxf6 {[%clk 0:02:59]}  Qxf6 {[%clk 0:02:26]} 6. Nd5 {[%clk 0:03:00]}  Qd6 {[%clk 0:01:54]} 7. c4 {[%clk 0:03:00]}  O-O {[%clk 0:01:48]} 8. Nf3 {[%clk 0:02:59]}  Ba5 {[%clk 0:01:46]} 9. e3 {[%clk 0:02:59]}  Ne7 {[%clk 0:01:45]} 10. Nxe7+ {[%clk 0:02:59]}  Qxe7 {[%clk 0:01:45]} 11. Be2 {[%clk 0:03:00]}  d6 {[%clk 0:01:39]} 12. O-O {[%clk 0:03:00]}  Bf5 {[%clk 0:01:28]} 13. d4 {[%clk 0:03:00]}  c5 {[%clk 0:01:25]} 14. Bd3 {[%clk 0:02:46]}  Bg6 {[%clk 0:01:21]} 15. Rb1 {[%clk 0:02:45]}  b6 {[%clk 0:01:21]} 16. Qc2 {[%clk 0:02:38]}  Rfe8 {[%clk 0:01:20]} 17. Rfd1 {[%clk 0:02:37]}  cxd4 {[%clk 0:01:11]} 18. Nxd4 {[%clk 0:02:36]}  Rac8 {[%clk 0:01:10]} 19. Bxg6 {[%clk 0:02:30]}  hxg6 {[%clk 0:01:10]} 20. Nb5 {[%clk 0:02:31]}  Red8 {[%clk 0:01:05]} 21. Rd5 {[%clk 0:02:29]}  Rc5 {[%clk 0:00:58]} 22. Rbd1 {[%clk 0:02:26]}  Rxd5 {[%clk 0:00:55]} 23. cxd5 {[%clk 0:02:20]}  Bb4 {[%clk 0:00:31]} 24. Nd4 {[%clk 0:02:20]}  Qf6 {[%clk 0:00:29]} 25. Nc6 {[%clk 0:02:17]}  Bc5 {[%clk 0:00:18]} 26. Nxd8 {[%clk 0:02:17]}  Qxd8 {[%clk 0:00:19]} 27. a4 {[%clk 0:02:16]}  f5 {[%clk 0:00:17]} 28. Qc4 {[%clk 0:02:16]}  Qf6 {[%clk 0:00:17]} 29. g3 {[%clk 0:02:12]}  g5 {[%clk 0:00:17]} 30. h4 {[%clk 0:02:13]}  Kf7 {[%clk 0:00:11]} 31. hxg5 {[%clk 0:02:11]}  Qxg5 {[%clk 0:00:11]} 32. Kg2 {[%clk 0:02:08]}  Qf6 {[%clk 0:00:10]} 33. Qh4 {[%clk 0:02:04]}  Qb2 {[%clk 0:00:09]} 34. Qh5+ {[%clk 0:02:01]}  Kf6 {[%clk 0:00:09]} 35. Qh4+ {[%clk 0:01:43]}  Kf7 {[%clk 0:00:08]} 36. Qd8 {[%clk 0:01:38]}  Qe5 {[%clk 0:00:07]} 37. Qd7+ {[%clk 0:01:37]}  Kg6 {[%clk 0:00:07]} 38. Qe6+ {[%clk 0:00:39]}  Qxe6 {[%clk 0:00:07]} 39. dxe6 {[%clk 0:00:40]}  Kf6 {[%clk 0:00:06]} 40. Kf3 {[%clk 0:00:41]}  Kxe6 {[%clk 0:00:04]} 41. g4 {[%clk 0:00:40]}  fxg4+ {[%clk 0:00:03]} 42. Kxg4 {[%clk 0:00:41]}  a6 {[%clk 0:00:04]} 43. Kf3 {[%clk 0:00:41]}  b5 {[%clk 0:00:04]} 44. axb5 {[%clk 0:00:42]}  axb5 {[%clk 0:00:05]} 45. Ke4 {[%clk 0:00:42]}  b4 {[%clk 0:00:05]} 46. Rg1 {[%clk 0:00:41]}  Kf6 {[%clk 0:00:05]} 47. Kd3 {[%clk 0:00:41]}  g5 {[%clk 0:00:06]} 48. f3 {[%clk 0:00:41]}  Kf5 {[%clk 0:00:06]} 49. Rg4 {[%clk 0:00:41]}  Kf6 {[%clk 0:00:05]} 50. Rc4 {[%clk 0:00:34]}  Ke5 {[%clk 0:00:05]} 51. Rc1 {[%clk 0:00:33]}  Kf5 {[%clk 0:00:05]} 52. Re1 {[%clk 0:00:32]}  d5 {[%clk 0:00:04]} 53. Rc1 {[%clk 0:00:29]}  Bd6 {[%clk 0:00:04]} 54. Rc6 {[%clk 0:00:29]}  Be7 {[%clk 0:00:04]} 55. Rb6 {[%clk 0:00:28]}  Ke5 {[%clk 0:00:04]} 56. Rb5 {[%clk 0:00:28]}  Ke6 {[%clk 0:00:04]} 57. e4 {[%clk 0:00:25]}  dxe4+ {[%clk 0:00:04]} 58. Kxe4 {[%clk 0:00:26]}  Kf7 {[%clk 0:00:03]} 59. Kf5 {[%clk 0:00:24]}  Ke8 {[%clk 0:00:02]} 60. Rb7 {[%clk 0:00:24]}  Kd8 {[%clk 0:00:02]} 61. Ke6 {[%clk 0:00:24]}  Bc5 {[%clk 0:00:02]} 62. Rb5 {[%clk 0:00:24]}  Bd4 {[%clk 0:00:01]} 63. Rd5+ {[%clk 0:00:23]} 1-0


[Site "https://www.chess.com"]

[Event "Titled Tuesday Blitz December 13 Late 2022"]
[White "Walentukiewicz, Michal"]
[Black "Ibarra Jerez, Jose Carlos"]
[WhiteFideId "1126903"]
[BlackFideId "2226332"]
[WhiteElo "2028"]
[BlackElo "2638"]
[Result "0-1"]
[Round "04"]
[TimeControl "180+1"]
[Date "2022.12.13"]
[WhiteClock "0:00:18"]
[BlackClock "0:00:17"]

1. g3 {[%clk 0:03:00]}  d6 {[%clk 0:03:00]} 2. Bg2 {[%clk 0:03:00]}  Nf6 {[%clk 0:03:00]} 3. c4 {[%clk 0:03:00]}  g6 {[%clk 0:03:01]} 4. Nf3 {[%clk 0:03:00]}  Bg7 {[%clk 0:03:01]} 5. O-O {[%clk 0:03:00]}  O-O {[%clk 0:03:02]} 6. Nc3 {[%clk 0:03:01]}  Nc6 {[%clk 0:03:03]} 7. d3 {[%clk 0:03:01]}  e5 {[%clk 0:03:03]} 8. Rb1 {[%clk 0:03:02]}  a5 {[%clk 0:03:04]} 9. a3 {[%clk 0:03:02]}  Re8 {[%clk 0:03:04]} 10. b4 {[%clk 0:03:02]}  axb4 {[%clk 0:03:05]} 11. axb4 {[%clk 0:03:03]}  e4 {[%clk 0:03:05]} 12. Nd2 {[%clk 0:03:00]}  exd3 {[%clk 0:03:04]} 13. exd3 {[%clk 0:03:00]}  Bg4 {[%clk 0:02:59]} 14. Bf3 {[%clk 0:03:00]}  Bh3 {[%clk 0:02:57]} 15. Bg2 {[%clk 0:02:59]}  Qd7 {[%clk 0:02:57]} 16. Nde4 {[%clk 0:02:58]}  Nxe4 {[%clk 0:02:55]} 17. Nxe4 {[%clk 0:02:58]}  Nd4 {[%clk 0:02:51]} 18. Be3 {[%clk 0:02:51]}  Bg4 {[%clk 0:02:46]} 19. f3 {[%clk 0:02:36]}  Be6 {[%clk 0:02:46]} 20. Qd2 {[%clk 0:02:29]}  Ra3 {[%clk 0:02:28]} 21. Bg5 {[%clk 0:02:20]}  Bf5 {[%clk 0:01:51]} 22. Nf6+ {[%clk 0:02:18]}  Bxf6 {[%clk 0:01:52]} 23. Bxf6 {[%clk 0:02:19]}  Ne2+ {[%clk 0:01:49]} 24. Kh1 {[%clk 0:02:17]}  Qe6 {[%clk 0:01:48]} 25. Bb2 {[%clk 0:02:12]}  Rxd3 {[%clk 0:01:46]} 26. Qh6 {[%clk 0:02:11]}  Nc3 {[%clk 0:01:13]} 27. g4 {[%clk 0:02:02]}  Qe3 {[%clk 0:01:13]} 28. Qxe3 {[%clk 0:01:53]}  Rdxe3 {[%clk 0:01:14]} 29. Rbc1 {[%clk 0:01:42]}  Na4 {[%clk 0:01:06]} 30. Bd4 {[%clk 0:01:38]}  Rd3 {[%clk 0:01:06]} 31. Bf6 {[%clk 0:01:23]}  Bd7 {[%clk 0:01:04]} 32. Rfe1 {[%clk 0:01:07]}  Re6 {[%clk 0:01:04]} 33. g5 {[%clk 0:01:03]}  Bc6 {[%clk 0:01:03]} 34. f4 {[%clk 0:00:58]}  Bxg2+ {[%clk 0:00:57]} 35. Kxg2 {[%clk 0:00:59]}  Rd2+ {[%clk 0:00:54]} 36. Kg3 {[%clk 0:00:59]}  Nb6 {[%clk 0:00:38]} 37. Ra1 {[%clk 0:00:54]}  Rd3+ {[%clk 0:00:29]} 38. Kg4 {[%clk 0:00:51]}  Kf8 {[%clk 0:00:23]} 39. Rxe6 {[%clk 0:00:38]}  fxe6 {[%clk 0:00:22]} 40. Ra7 {[%clk 0:00:37]}  Nxc4 {[%clk 0:00:20]} 41. Rxb7 {[%clk 0:00:36]}  Ne3+ {[%clk 0:00:21]} 42. Kf3 {[%clk 0:00:25]}  Nd5+ {[%clk 0:00:20]} 43. Ke4 {[%clk 0:00:22]}  Rb3 {[%clk 0:00:21]} 44. Rb8+ {[%clk 0:00:19]}  Kf7 {[%clk 0:00:21]} 45. Rh8 {[%clk 0:00:18]}  Nxf6+ {[%clk 0:00:19]} 46. gxf6 {[%clk 0:00:19]}  Rxb4+ {[%clk 0:00:20]} 47. Kf3 {[%clk 0:00:19]}  Kxf6 {[%clk 0:00:19]} 48. Rxh7 {[%clk 0:00:19]}  c5 {[%clk 0:00:19]} 49. Rd7 {[%clk 0:00:18]}  d5 {[%clk 0:00:19]} 50. Kg4 {[%clk 0:00:18]}  g5 {[%clk 0:00:17]} 0-1


[Site "https://www.chess.com"]

[Event "Titled Tuesday Blitz December 13 Late 2022"]
[White "Young, Ryan"]
[Black "Pham, Khoi"]
[WhiteFideId "2049945"]
[BlackFideId "1054988"]
[WhiteElo "2305"]
[BlackElo "2517"]
[Result "0-1"]
[Round "04"]
[TimeControl "180+1"]
[Date "2022.12.14"]
[WhiteClock "0:00:04"]
[BlackClock "0:00:32"]

1. d4 {[%clk 0:03:00]}  Nf6 {[%clk 0:02:57]} 2. c4 {[%clk 0:03:01]}  g6 {[%clk 0:02:57]} 3. Nf3 {[%clk 0:02:58]}  Bg7 {[%clk 0:02:58]} 4. Nc3 {[%clk 0:02:59]}  O-O {[%clk 0:02:58]} 5. e4 {[%clk 0:02:59]}  d6 {[%clk 0:02:58]} 6. Be2 {[%clk 0:02:59]}  e5 {[%clk 0:02:58]} 7. O-O {[%clk 0:02:59]}  Nc6 {[%clk 0:02:58]} 8. d5 {[%clk 0:02:59]}  Ne7 {[%clk 0:02:59]} 9. b4 {[%clk 0:03:00]}  a5 {[%clk 0:02:53]} 10. Ba3 {[%clk 0:02:59]}  axb4 {[%clk 0:02:52]} 11. Bxb4 {[%clk 0:02:58]}  b6 {[%clk 0:02:53]} 12. a4 {[%clk 0:02:57]}  Nd7 {[%clk 0:02:50]} 13. Qb3 {[%clk 0:02:43]}  f5 {[%clk 0:02:48]} 14. Ng5 {[%clk 0:02:42]}  Nc5 {[%clk 0:02:46]} 15. Bxc5 {[%clk 0:02:41]}  bxc5 {[%clk 0:02:46]} 16. Ne6 {[%clk 0:02:28]}  Bxe6 {[%clk 0:02:44]} 17. dxe6 {[%clk 0:02:28]}  Nc6 {[%clk 0:02:43]} 18. Nb5 {[%clk 0:01:52]}  Qe7 {[%clk 0:02:29]} 19. Qc3 {[%clk 0:01:24]}  Nd4 {[%clk 0:02:18]} 20. Bd3 {[%clk 0:01:13]}  fxe4 {[%clk 0:02:12]} 21. a5 {[%clk 0:00:29]}  exd3 {[%clk 0:02:11]} 22. Qxd3 {[%clk 0:00:30]}  Nxe6 {[%clk 0:02:09]} 23. Qd5 {[%clk 0:00:25]}  Kh8 {[%clk 0:02:06]} 24. a6 {[%clk 0:00:25]}  Nf4 {[%clk 0:02:02]} 25. Qc6 {[%clk 0:00:21]}  Ne6 {[%clk 0:01:29]} 26. a7 {[%clk 0:00:20]}  Nd4 {[%clk 0:01:25]} 27. Qxc7 {[%clk 0:00:20]}  Qg5 {[%clk 0:00:51]} 28. Qxd6 {[%clk 0:00:18]}  Nf3+ {[%clk 0:00:49]} 29. Kh1 {[%clk 0:00:18]}  Qh5 {[%clk 0:00:39]} 30. gxf3 {[%clk 0:00:18]}  Qxf3+ {[%clk 0:00:40]} 31. Kg1 {[%clk 0:00:18]}  Rf5 {[%clk 0:00:35]} 32. h4 {[%clk 0:00:13]}  Qg4+ {[%clk 0:00:31]} 33. Kh1 {[%clk 0:00:02]}  Qxh4+ {[%clk 0:00:32]} 34. Kg2 {[%clk 0:00:03]}  Qg4+ {[%clk 0:00:32]} 35. Kh2 {[%clk 0:00:04]}  Rh5# {[%clk 0:00:32]} 0-1


[Site "https://www.chess.com"]

[Event "Titled Tuesday Blitz December 13 Late 2022"]
[White "Abasov, Nijat"]
[Black "Goltsev, Dmitry"]
[WhiteFideId "13402960"]
[BlackFideId "24176710"]
[WhiteElo "2546"]
[BlackElo "2327"]
[Result "0-1"]
[Round "05"]
[TimeControl "180+1"]
[Date "2022.12.13"]
[WhiteClock "0:00:27"]
[BlackClock "0:01:05"]

1. g3 {[%clk 0:03:00]}  g6 {[%clk 0:02:58]} 2. Bg2 {[%clk 0:02:59]}  Bg7 {[%clk 0:02:59]} 3. e4 {[%clk 0:02:58]}  e5 {[%clk 0:02:58]} 4. c3 {[%clk 0:02:58]}  c6 {[%clk 0:02:58]} 5. d4 {[%clk 0:02:58]}  exd4 {[%clk 0:02:58]} 6. cxd4 {[%clk 0:02:58]}  Ne7 {[%clk 0:02:58]} 7. Nc3 {[%clk 0:02:57]}  d5 {[%clk 0:02:59]} 8. e5 {[%clk 0:02:56]}  O-O {[%clk 0:02:58]} 9. Nge2 {[%clk 0:02:55]}  f6 {[%clk 0:02:59]} 10. exf6 {[%clk 0:02:48]}  Bxf6 {[%clk 0:03:00]} 11. O-O {[%clk 0:02:48]}  Nf5 {[%clk 0:02:52]} 12. Be3 {[%clk 0:02:45]}  Nxe3 {[%clk 0:02:49]} 13. fxe3 {[%clk 0:02:46]}  Bg4 {[%clk 0:02:46]} 14. Qb3 {[%clk 0:02:24]}  Qb6 {[%clk 0:02:44]} 15. Nf4 {[%clk 0:02:25]}  Qxb3 {[%clk 0:02:41]} 16. axb3 {[%clk 0:02:26]}  Nd7 {[%clk 0:02:39]} 17. Nfxd5 {[%clk 0:02:05]}  cxd5 {[%clk 0:02:36]} 18. Bxd5+ {[%clk 0:02:06]}  Kh8 {[%clk 0:02:25]} 19. Bxb7 {[%clk 0:02:02]}  Rab8 {[%clk 0:02:25]} 20. Rxa7 {[%clk 0:01:59]}  Bg5 {[%clk 0:02:17]} 21. Re1 {[%clk 0:01:51]}  Rbe8 {[%clk 0:02:01]} 22. Be4 {[%clk 0:01:24]}  Nf6 {[%clk 0:01:57]} 23. Bc6 {[%clk 0:01:04]}  Rxe3 {[%clk 0:01:55]} 24. Rxe3 {[%clk 0:01:05]}  Bxe3+ {[%clk 0:01:56]} 25. Kg2 {[%clk 0:01:06]}  Bxd4 {[%clk 0:01:56]} 26. Ra4 {[%clk 0:01:03]}  Rd8 {[%clk 0:01:49]} 27. h3 {[%clk 0:01:00]}  Be6 {[%clk 0:01:49]} 28. b4 {[%clk 0:00:58]}  Nd5 {[%clk 0:01:37]} 29. b5 {[%clk 0:00:45]}  Nxc3 {[%clk 0:01:30]} 30. bxc3 {[%clk 0:00:45]}  Bxc3 {[%clk 0:01:31]} 31. b6 {[%clk 0:00:45]}  Rb8 {[%clk 0:01:22]} 32. b7 {[%clk 0:00:44]}  Kg7 {[%clk 0:01:15]} 33. Kf3 {[%clk 0:00:41]}  Bxh3 {[%clk 0:01:06]} 34. Ke4 {[%clk 0:00:27]}  Bg2+ {[%clk 0:01:05]} 0-1


[Site "https://www.chess.com"]

[Event "Titled Tuesday Blitz December 13 Late 2022"]
[White "Abdrlauf, Elham"]
[Black "O`Gorman, Tom"]
[WhiteFideId "1533533"]
[BlackFideId "2508249"]
[WhiteElo "2454"]
[BlackElo "2271"]
[Result "1-0"]
[Round "05"]
[TimeControl "180+1"]
[Date "2022.12.13"]
[WhiteClock "0:00:54"]
[BlackClock "0:00:32"]

1. e4 {[%clk 0:03:00]}  c5 {[%clk 0:02:57]} 2. Nf3 {[%clk 0:02:59]}  d6 {[%clk 0:02:58]} 3. d4 {[%clk 0:02:54]}  cxd4 {[%clk 0:02:59]} 4. Nxd4 {[%clk 0:02:55]}  Nf6 {[%clk 0:02:58]} 5. f3 {[%clk 0:02:56]}  e5 {[%clk 0:02:56]} 6. Nb3 {[%clk 0:02:56]}  Be7 {[%clk 0:02:56]} 7. c4 {[%clk 0:02:55]}  O-O {[%clk 0:02:56]} 8. Nc3 {[%clk 0:02:56]}  Nh5 {[%clk 0:02:51]} 9. Be3 {[%clk 0:02:54]}  f5 {[%clk 0:02:47]} 10. exf5 {[%clk 0:02:55]}  Bh4+ {[%clk 0:02:44]} 11. g3 {[%clk 0:02:54]}  Bg5 {[%clk 0:02:45]} 12. Qd2 {[%clk 0:02:48]}  Bxe3 {[%clk 0:02:36]} 13. Qxe3 {[%clk 0:02:48]}  Bxf5 {[%clk 0:02:28]} 14. g4 {[%clk 0:02:39]}  Qh4+ {[%clk 0:02:27]} 15. Kd1 {[%clk 0:02:40]}  Nc6 {[%clk 0:02:19]} 16. gxf5 {[%clk 0:02:18]}  Nf4 {[%clk 0:02:15]} 17. Kd2 {[%clk 0:02:09]}  Rad8 {[%clk 0:02:09]} 18. Rd1 {[%clk 0:02:06]}  d5 {[%clk 0:01:59]} 19. cxd5 {[%clk 0:02:03]}  Nxd5 {[%clk 0:01:59]} 20. Nxd5 {[%clk 0:02:01]}  Rxd5+ {[%clk 0:01:58]} 21. Kc1 {[%clk 0:02:02]}  Rxd1+ {[%clk 0:01:51]} 22. Kxd1 {[%clk 0:02:03]}  Nb4 {[%clk 0:01:47]} 23. Nd2 {[%clk 0:01:40]}  Rd8 {[%clk 0:01:41]} 24. a3 {[%clk 0:01:35]}  Nd5 {[%clk 0:01:36]} 25. Qe4 {[%clk 0:01:34]}  Nf4 {[%clk 0:01:24]} 26. Bc4+ {[%clk 0:01:22]}  Kh8 {[%clk 0:01:23]} 27. Kc1 {[%clk 0:01:23]}  Qh6 {[%clk 0:00:43]} 28. Rd1 {[%clk 0:01:14]}  Qd6 {[%clk 0:00:37]} 29. Kb1 {[%clk 0:01:09]}  Qc5 {[%clk 0:00:36]} 30. Ka2 {[%clk 0:00:55]}  h6 {[%clk 0:00:32]} 31. Nb3 {[%clk 0:00:54]} 1-0


[Site "https://www.chess.com"]

[Event "Titled Tuesday Blitz December 13 Late 2022"]
[White "Adewumi, Tanitoluwa"]
[Black "Kovacevic, Radmila"]
[WhiteFideId "30966396"]
[BlackFideId "933171"]
[WhiteElo "2478"]
[BlackElo "2244"]
[Result "1-0"]
[Round "05"]
[TimeControl "180+1"]
[Date "2022.12.14"]
[WhiteClock "0:00:01"]
[BlackClock "0:00:04"]

1. e4 {[%clk 0:02:53]}  e5 {[%clk 0:03:00]} 2. Nf3 {[%clk 0:02:26]}  f5 {[%clk 0:03:00]} 3. d3 {[%clk 0:02:17]}  Nc6 {[%clk 0:02:56]} 4. Nc3 {[%clk 0:02:16]}  Nf6 {[%clk 0:02:56]} 5. exf5 {[%clk 0:02:14]}  d5 {[%clk 0:02:56]} 6. Bg5 {[%clk 0:02:13]}  Bb4 {[%clk 0:02:47]} 7. a3 {[%clk 0:01:59]}  Bxc3+ {[%clk 0:02:38]} 8. bxc3 {[%clk 0:02:00]}  Bxf5 {[%clk 0:02:37]} 9. Be2 {[%clk 0:01:54]}  h6 {[%clk 0:02:33]} 10. Bh4 {[%clk 0:01:41]}  O-O {[%clk 0:02:30]} 11. O-O {[%clk 0:01:40]}  g5 {[%clk 0:02:24]} 12. Bg3 {[%clk 0:01:39]}  Qe7 {[%clk 0:02:15]} 13. d4 {[%clk 0:01:38]}  e4 {[%clk 0:02:08]} 14. Ne5 {[%clk 0:01:36]}  Nd7 {[%clk 0:02:02]} 15. c4 {[%clk 0:01:20]}  Ncxe5 {[%clk 0:01:47]} 16. dxe5 {[%clk 0:01:17]}  dxc4 {[%clk 0:01:39]} 17. Bxc4+ {[%clk 0:01:15]}  Kh7 {[%clk 0:01:38]} 18. Rb1 {[%clk 0:00:56]}  b6 {[%clk 0:01:27]} 19. Qd5 {[%clk 0:00:51]}  Qc5 {[%clk 0:01:11]} 20. e6 {[%clk 0:00:45]}  Nf6 {[%clk 0:00:56]} 21. Qxc5 {[%clk 0:00:42]}  bxc5 {[%clk 0:00:56]} 22. Rb7 {[%clk 0:00:32]}  Rfe8 {[%clk 0:00:50]} 23. Rxc7+ {[%clk 0:00:30]}  Kg6 {[%clk 0:00:50]} 24. Rc6 {[%clk 0:00:22]}  Rac8 {[%clk 0:00:33]} 25. Ra6 {[%clk 0:00:19]}  Rcd8 {[%clk 0:00:22]} 26. Be5 {[%clk 0:00:14]}  Nd5 {[%clk 0:00:19]} 27. Rd1 {[%clk 0:00:08]}  Rxe6 {[%clk 0:00:17]} 28. Rxe6+ {[%clk 0:00:05]}  Bxe6 {[%clk 0:00:18]} 29. g3 {[%clk 0:00:01]}  Rd7 {[%clk 0:00:17]} 30. f4 {[%clk 0:00:01]}  exf3 {[%clk 0:00:16]} 31. Kf2 {[%clk 0:00:02]}  g4 {[%clk 0:00:15]} 32. Re1 {[%clk 0:00:02]}  Kf7 {[%clk 0:00:14]} 33. Bd3 {[%clk 0:00:03]}  Ne7 {[%clk 0:00:13]} 34. Re4 {[%clk 0:00:03]}  Bf5 {[%clk 0:00:11]} 35. Rf4 {[%clk 0:00:03]}  Ke6 {[%clk 0:00:11]} 36. Bc3 {[%clk 0:00:02]}  Bxd3 {[%clk 0:00:11]} 37. Rf6+ {[%clk 0:00:02]}  Kd5 {[%clk 0:00:11]} 38. cxd3 {[%clk 0:00:03]}  Nc6 {[%clk 0:00:10]} 39. Rf5+ {[%clk 0:00:03]}  Kd6 {[%clk 0:00:10]} 40. Rf6+ {[%clk 0:00:03]}  Kc7 {[%clk 0:00:10]} 41. Ke3 {[%clk 0:00:03]}  Re7+ {[%clk 0:00:10]} 42. Kd2 {[%clk 0:00:03]}  Ne5 {[%clk 0:00:10]} 43. Rxh6 {[%clk 0:00:02]}  c4 {[%clk 0:00:09]} 44. Rf6 {[%clk 0:00:02]}  Nxd3 {[%clk 0:00:09]} 45. Rf5 {[%clk 0:00:02]}  f2 {[%clk 0:00:09]} 46. Bd4 {[%clk 0:00:02]}  Rd7 {[%clk 0:00:07]} 47. Kc3 {[%clk 0:00:02]}  Rxd4 {[%clk 0:00:07]} 48. Kxd4 {[%clk 0:00:02]}  Kd7 {[%clk 0:00:04]} 49. Rf4 {[%clk 0:00:01]} 1-0


[Site "https://www.chess.com"]